bitfinex-derivatives/quotes_SOLF0:USTF0_20260226
["timestamp","ask_amount","ask_price","bid_price","bid_amount"]
[1772106702993,3.65438308,86.729,86.686,10.3819]
[1772106703489,3.65438308,86.739,86.7,3.06673524]
[1772106703684,3.06673524,86.75,86.701,3.62344398]
[1772106703883,3.65438308,86.753,86.701,3.62344398]
[1772106704891,10.3742,86.751,86.704,10.3797]
[1772106705091,10.3742,86.751,86.705,3.62344398]
[1772106705991,14.02858308,86.751,86.705,3.62344398]
[1772106706187,14.02858308,86.751,86.637,34.62]
[1772106706188,3.65438308,86.764,86.711,3.62344398]
[1772106706388,3.65438308,86.777,86.731,3.62344398]
[1772106707897,10.3713,86.775,86.731,3.62344398]
[1772106710496,20.7351,86.807,86.731,3.62344398]
[1772106710497,3.06673524,86.78,86.731,3.62344398]
[1772106710891,14.02528308,86.778,86.731,3.62344398]
[1772106711085,3.65438308,86.777,86.731,3.62344398]
[1772106711596,10.3715,86.774,86.731,3.62344398]
[1772106715796,3.65438308,86.779,86.731,3.62344398]
[1772106716302,10.3714,86.774,86.731,3.62344398]
[1772106717196,14.29037555,86.768,86.731,3.62344398]
[1772106719694,3.91817555,86.774,86.733,10.3763]
[1772106722392,3.91817555,86.774,86.738,10.3757]
[1772106723804,3.91817555,86.774,86.734,3.67224957]
[1772106727410,3.05985129,86.77,86.723,10.3775]
[1772106727611,3.91817555,86.769,86.723,10.3775]
[1772106727911,3.91817555,86.769,86.721,3.67224957]
[1772106729009,3.91817555,86.769,86.729,14.04894957]
[1772106729205,10.3718,86.771,86.73,3.67224957]
[1772106729413,10.3718,86.771,86.731,3.67224957]
[1772106729712,3.91817555,86.777,86.732,3.67224957]
[1772106731013,3.91817555,86.777,86.738,10.3757]
[1772106733314,3.91817555,86.777,86.733,3.67224957]
[1772106734015,10.3702,86.785,86.741,3.67224957]
[1772106735010,10.3702,86.785,86.742,3.67224957]
[1772106735207,3.05985129,86.79,86.742,3.67224957]
[1772106735208,10.3707,86.78,86.742,3.67224957]
[1772106735716,3.91817555,86.779,86.742,3.67224957]
[1772106739321,10.3709,86.778,86.742,3.67224957]
[1772106739518,3.91817555,86.777,86.742,3.67224957]
[1772106740220,3.91817555,86.775,86.731,3.67224957]
[1772106740720,14.28997555,86.771,86.732,10.3764]
[1772106742019,14.28997555,86.771,86.733,3.67224957]
[1772106744516,14.28997555,86.771,86.732,10.3764]
[1772106744517,3.05985129,86.79,86.741,3.67224957]
[1772106744721,3.91817555,86.789,86.741,3.67224957]
[1772106745922,3.91817555,86.769,86.711,3.59171684]
[1772106746121,3.8531545,86.759,86.711,3.59171684]
[1772106746724,3.8531545,86.759,86.717,10.3782]
[1772106747823,3.8531545,86.749,86.711,3.59171684]
[1772106748524,3.8531545,86.749,86.712,10.3788]
[1772106749822,3.8531545,86.749,86.712,13.97051684]
[1772106750024,13.96480924,86.795,86.668,34.62]
[1772106750025,3.05985129,86.77,86.721,3.59171684]
[1772106750330,3.8531545,86.774,86.684,20.7642]
[1772106750331,3.8531545,86.774,86.731,3.59171684]
[1772106750929,3.8531545,86.739,86.69,3.59171684]
[1772106752834,3.8531545,86.739,86.697,10.3805]
[1772106757333,3.8531545,86.739,86.701,3.5609035]
[1772106759040,3.8531545,86.739,86.703,10.3798]
[1772106760633,3.05985129,86.76,86.711,3.5609035]
[1772106761240,3.05985129,86.76,86.722,10.3776]
[1772106761440,10.3727,86.764,86.722,13.9385035]
[1772106761841,3.69710288,86.763,86.722,13.9385035]
[1772106762244,6.75695417,86.75,86.714,10.3786]
[1772106762639,3.69710288,86.749,86.714,10.3786]
[1772106768147,3.69710288,86.749,86.709,3.5609035]
[1772106769948,10.3746,86.748,86.71,10.3791]
[1772106770341,3.69710288,86.747,86.709,3.5609035]
[1772106770649,10.3749,86.745,86.709,13.9401035]
[1772106771042,10.3749,86.745,86.71,3.5609035]
[1772106772454,3.69710288,86.747,86.71,3.5609035]
[1772106772654,3.69710288,86.747,86.711,10.3789]
[1772106773355,3.69710288,86.747,86.714,10.3785]
[1772106773651,3.69710288,86.747,86.715,3.5609035]
[1772106773851,3.69710288,86.758,86.717,3.5609035]
[1772106774955,3.69710288,86.758,86.718,13.9390035]
[1772106776856,14.07040288,86.758,86.718,13.9390035]
[1772106777055,3.69710288,86.758,86.72,10.3778]
[1772106778658,3.69710288,86.758,86.719,3.66877427]
[1772106780256,3.72822455,86.754,86.719,3.66877427]
[1772106781550,10.3727,86.763,86.72,3.66877427]
[1772106783051,10.3732,86.759,86.72,3.66877427]
[1772106783461,14.10142455,86.759,86.72,3.66877427]
[1772106783660,3.72822455,86.78,86.732,3.66877427]
[1772106783863,3.72822455,86.779,86.732,3.66877427]
[1772106784860,14.09912455,86.779,86.733,10.3763]
[1772106785165,14.09912455,86.779,86.734,3.66877427]
[1772106785961,14.09912455,86.779,86.737,3.66877427]
[1772106786360,3.72822455,86.785,86.737,3.66877427]
[1772106786863,3.72822455,86.785,86.739,3.66877427]
[1772106787961,14.09842455,86.784,86.739,3.66877427]
[1772106788161,14.09842455,86.784,86.696,20.7615]
[1772106788162,3.72822455,86.784,86.743,3.66877427]
[1772106789864,3.72822455,86.784,86.746,3.66877427]
[1772106794071,3.72822455,86.784,86.748,3.66877427]
[1772106797869,3.72822455,86.789,86.75,3.66877427]
[1772106798171,10.3686,86.798,86.751,3.66877427]
[1772106798474,6.78977876,86.8,86.751,3.66877427]
[1772106798770,3.72822455,86.8,86.765,3.66877427]
[1772106798971,6.78977876,86.8,86.765,3.66877427]
[1772106799971,3.72822455,86.799,86.765,3.66877427]
[1772106810176,3.72673552,86.797,86.753,3.62305612]
[1772106810381,3.72673552,86.779,86.73,3.62305612]
[1772106811172,3.72673552,86.779,86.737,3.62305612]
[1772106811783,3.72673552,86.779,86.739,3.62305612]
[1772106812978,3.72673552,86.779,86.742,10.3752]
[1772106814680,3.72673552,86.779,86.742,13.99825612]
[1772106819080,3.72673552,86.779,86.744,10.3749]
[1772106820088,3.72673552,86.779,86.744,14.0591948]
[1772106820291,3.72673552,86.779,86.745,3.6842948]
[1772106820492,3.89811094,86.759,86.66,3.6842948]
[1772106820691,3.06155421,86.72,86.671,3.6842948]
[1772106820991,3.89811094,86.729,86.681,3.6842948]
[1772106821191,6.95966515,86.74,86.691,3.6842948]
[1772106821585,3.89811094,86.74,86.691,3.6842948]
[1772106822883,3.89811094,86.74,86.696,3.6842948]
[1772106824298,3.89811094,86.74,86.699,3.6842948]
[1772106824491,3.06155421,86.75,86.699,3.6842948]
[1772106824690,3.06155421,86.75,86.659,34.62]
[1772106824691,3.06155421,86.75,86.701,3.6842948]
[1772106825894,3.06155421,86.75,86.702,3.6842948]
[1772106827098,3.06155421,86.75,86.704,3.6842948]
[1772106828698,3.06155421,86.75,86.706,3.6842948]
[1772106828899,3.06155421,86.76,86.711,3.6842948]
[1772106829299,3.89811094,86.757,86.711,3.6842948]
[1772106829598,3.89811094,86.749,86.691,3.6842948]
[1772106830299,14.27281094,86.747,86.703,3.6842948]
[1772106830799,3.89811094,86.747,86.703,3.6842948]
[1772106830988,3.89811094,86.747,86.659,34.62]
[1772106830989,3.89811094,86.747,86.712,14.0630948]
[1772106831192,3.89811094,86.759,86.713,3.6842948]
[1772106831595,3.89811094,86.759,86.715,3.6842948]
[1772106832999,3.89811094,86.759,86.717,3.6842948]
[1772106833700,3.89811094,86.759,86.72,3.6842948]
[1772106835001,3.89811094,86.759,86.722,10.3776]
[1772106836205,3.06134451,86.77,86.725,3.77746059]
[1772106836701,3.63098028,86.771,86.725,3.77746059]
[1772106837908,3.63098028,86.771,86.73,10.3766]
[1772106838208,3.63098028,86.771,86.73,14.15406059]
[1772106838905,3.63098028,86.771,86.73,10.3766]
[1772106839207,3.63098028,86.759,86.722,10.3775]
[1772106839707,3.63098028,86.759,86.722,14.15496059]
[1772106839908,3.63098028,86.759,86.727,10.377]
[1772106842311,3.63098028,86.749,86.7,3.06134451]
[1772106842511,3.63098028,86.749,86.699,3.77746059]
[1772106843816,3.63098028,86.749,86.71,10.379]
[1772106847524,3.63098028,86.749,86.699,3.77746059]
[1772106847525,3.63098028,86.749,86.715,10.3784]
[1772106848016,3.06134451,86.75,86.721,3.77746059]
[1772106848218,3.06134451,86.77,86.721,3.77746059]
[1772106848420,3.63098028,86.769,86.721,3.77746059]
[1772106849221,3.06134451,86.76,86.721,3.77746059]
[1772106849925,3.06134451,86.76,86.727,10.377]
[1772106850124,3.06134451,86.76,86.728,3.77746059]
[1772106850421,10.55526548,86.807,86.728,3.77746059]
[1772106850422,3.63098028,86.779,86.728,3.77746059]
[1772106851119,3.63098028,86.779,86.731,3.77746059]
[1772106852022,3.63098028,86.779,86.739,10.3756]
[1772106852918,3.63098028,86.779,86.742,3.77746059]
[1772106853120,3.63098028,86.791,86.742,3.77746059]
[1772106853427,3.06134451,86.79,86.742,3.77746059]
[1772106853623,3.63098028,86.789,86.742,3.77746059]
[1772106854923,3.63098028,86.789,86.749,10.3743]
[1772106856330,3.63098028,86.779,86.742,10.3752]
[1772106858030,3.63098028,86.779,86.748,10.3745]
[1772106859634,3.63098028,86.779,86.741,3.77746059]
[1772106861330,3.63098028,86.749,86.701,3.77746059]
[1772106861834,3.63098028,86.761,86.711,3.77746059]
[1772106862035,3.06134451,86.76,86.711,3.77746059]
[1772106862640,3.63098028,86.749,86.719,10.3779]
[1772106862839,3.63098028,86.749,86.711,3.77746059]
[1772106863939,3.63098028,86.749,86.718,10.378]
[1772106866734,6.83804842,86.76,86.719,3.8169152]
[1772106866939,6.83804842,86.76,86.723,3.8169152]
[1772106868141,6.83804842,86.76,86.726,10.377]
[1772106872141,6.83804842,86.76,86.729,10.3767]
[1772106877144,3.7665917,86.755,86.716,3.84125702]
[1772106877450,3.7665917,86.749,86.712,3.84125702]
[1772106878644,6.82793621,86.76,86.712,3.84125702]
[1772106878840,6.82793621,86.76,86.719,3.84125702]
[1772106879440,6.82793621,86.76,86.722,10.3775]
[1772106879647,6.82793621,86.76,86.723,3.84125702]
[1772106880750,6.82793621,86.76,86.726,3.84125702]
[1772106881047,21.02788509,86.815,86.726,3.84125702]
[1772106881048,3.06134451,86.77,86.726,3.84125702]
[1772106881346,3.7665917,86.771,86.726,3.84125702]
[1772106882044,3.7665917,86.771,86.737,3.84125702]
[1772106883149,3.06134451,86.77,86.737,3.84125702]
[1772106883449,3.06134451,86.77,86.737,14.21705702]
[1772106884350,3.06134451,86.77,86.738,3.84125702]
[1772106884550,10.3705,86.782,86.72,3.06134451]
[1772106884551,3.7665917,86.779,86.74,3.84125702]
[1772106885550,3.7665917,86.779,86.741,10.3753]
[1772106891556,3.7665917,86.777,86.738,3.84125702]
[1772106899070,3.7665917,86.777,86.739,10.3756]
[1772106900474,3.7665917,86.777,86.739,14.25703015]
[1772106900672,10.3702,86.784,86.683,63.18496626]
[1772106900673,8.95657654,86.802,86.742,3.88143015]
[1772106900873,3.82916104,86.825,86.771,3.88143015]
[1772106901173,3.82916104,86.825,86.781,3.88143015]
[1772106901875,3.82916104,86.822,86.781,3.88143015]
[1772106902068,3.06024616,86.82,86.781,3.88143015]
[1772106902370,3.06024616,86.83,86.781,3.88143015]
[1772106902668,3.82916104,86.833,86.781,3.88143015]
[1772106903175,3.82916104,86.827,86.783,3.88143015]
[1772106904575,3.82916104,86.834,86.791,3.88143015]
[1772106905167,3.82916104,86.834,86.794,3.88143015]
[1772106905375,3.82916104,86.819,86.749,3.88143015]
[1772106905575,3.82916104,86.819,86.771,3.88143015]
[1772106906979,3.82916104,86.816,86.771,3.88143015]
[1772106908071,3.06024616,86.83,86.771,3.88143015]
[1772106908270,3.82916104,86.829,86.771,3.88143015]
[1772106908876,14.19446104,86.826,86.78,3.88143015]
[1772106909581,3.82916104,86.825,86.78,6.94167631]
[1772106909773,3.82916104,86.825,86.781,3.88143015]
[1772106910679,3.82916104,86.825,86.783,3.88143015]
[1772106910881,3.82916104,86.819,86.761,3.88143015]
[1772106911272,3.82916104,86.819,86.772,3.88143015]
[1772106912878,3.82916104,86.816,86.772,3.88143015]
[1772106914083,10.3668,86.813,86.772,3.88143015]
[1772106915283,3.82916104,86.816,86.773,10.3714]
[1772106915583,3.82916104,86.816,86.774,3.88143015]
[1772106915976,3.82916104,86.799,86.763,3.88143015]
[1772106916482,3.82916104,86.789,86.75,3.88143015]
[1772106917979,10.3699,86.787,86.75,3.88143015]
[1772106922083,3.06024616,86.8,86.751,3.88143015]
[1772106922084,3.82916104,86.8,86.751,3.88143015]
[1772106922686,6.8894072,86.8,86.751,3.88143015]
[1772106922881,3.82916104,86.799,86.746,3.88143015]
[1772106923088,20.7279,86.837,86.746,3.88143015]
[1772106923089,3.82916104,86.789,86.746,3.88143015]
[1772106923687,10.3702,86.785,86.746,14.25613015]
[1772106925080,10.3684,86.8,86.749,3.88143015]
[1772106925278,3.82916104,86.805,86.751,3.88143015]
[1772106925483,3.82916104,86.817,86.771,3.88143015]
[1772106926885,10.3666,86.815,86.775,3.5833665]
[1772106928189,3.82916104,86.817,86.776,10.3711]
[1772106928385,3.82916104,86.817,86.777,3.5833665]
[1772106930992,3.82916104,86.817,86.779,13.9540665]
[1772106931495,3.80492625,86.829,86.785,3.5833665]
[1772106932991,3.80492625,86.829,86.788,10.3696]
[1772106933193,3.80492625,86.829,86.788,13.9529665]
[1772106933390,3.80492625,86.829,86.789,3.5833665]
[1772106934492,3.80492625,86.827,86.789,3.5833665]
[1772106934694,3.80492625,86.827,86.78,3.06024616]
[1772106934895,3.80492625,86.827,86.779,13.9540665]
[1772106935995,3.80492625,86.825,86.782,3.5833665]
[1772106936696,10.3656,86.823,86.782,3.5833665]
[1772106938797,14.19042095,86.823,86.782,3.5833665]
[1772106940695,3.82482095,86.822,86.782,3.5833665]
[1772106940999,3.82482095,86.809,86.771,3.55099191]
[1772106941198,3.82482095,86.809,86.751,3.55099191]
[1772106941395,3.06024616,86.8,86.751,3.55099191]
[1772106942201,10.3686,86.798,86.755,10.3737]
[1772106942496,3.82482095,86.797,86.756,3.55099191]
[1772106943202,3.06024616,86.81,86.756,3.55099191]
[1772106943397,10.3682,86.801,86.763,3.55099191]
[1772106943998,6.88506711,86.81,86.763,3.55099191]
[1772106944395,3.82482095,86.809,86.763,3.55099191]
[1772106944990,14.19212095,86.809,86.765,3.55099191]
[1772106945693,14.19212095,86.809,86.767,3.55099191]
[1772106947101,14.19212095,86.809,86.769,10.3719]
[1772106948202,14.19212095,86.809,86.769,13.92289191]
[1772106948806,3.82482095,86.809,86.772,10.3716]
[1772106952302,3.82482095,86.809,86.774,13.92229191]
[1772106952607,3.82482095,86.809,86.774,3.55099191]
[1772106954399,3.82482095,86.809,86.767,10.3722]
[1772106954400,3.82482095,86.799,86.76,10.373]
[1772106954605,3.82482095,86.799,86.761,3.55099191]
[1772106955111,3.82482095,86.799,86.765,3.55099191]
[1772106956006,10.3678,86.805,86.765,3.55099191]
[1772106956504,3.82482095,86.81,86.772,10.3716]
[1772106956806,3.82482095,86.81,86.765,3.55099191]
[1772106958002,13.92783149,86.809,86.766,3.74623215]
[1772106958509,3.56063149,86.808,86.766,3.74623215]
[1772106960903,13.92813149,86.807,86.766,3.74623215]
[1772106961109,3.56063149,86.806,86.766,3.74623215]
[1772106961508,3.56063149,86.799,86.757,10.3734]
[1772106961811,3.56063149,86.789,86.743,3.74623215]
[1772106962905,3.56063149,86.789,86.75,10.3742]
[1772106963305,3.56063149,86.787,86.743,3.74623215]
[1772106963708,3.56063149,86.779,86.743,3.74623215]
[1772106965009,10.371,86.778,86.743,3.74623215]
[1772106967413,10.3714,86.774,86.743,3.74623215]
[1772106967713,3.56063149,86.773,86.731,3.74623215]
[1772106968416,10.3718,86.771,86.732,10.3764]
[1772106968616,10.3718,86.771,86.733,3.74623215]
[1772106969314,3.56063149,86.773,86.734,3.74623215]
[1772106969510,10.3709,86.779,86.734,3.74623215]
[1772106969714,3.56063149,86.799,86.751,3.74623215]
[1772106969918,3.56063149,86.799,86.76,3.05737174]
[1772106970119,3.56063149,86.799,86.759,3.74623215]
[1772106971025,3.56063149,86.799,86.76,10.373]
[1772106971319,10.3683,86.8,86.704,34.57]
[1772106971320,3.56063149,86.797,86.747,3.74623215]
[1772106971525,3.56063149,86.79,86.747,3.74623215]
[1772106973017,10.3699,86.787,86.747,3.74623215]
[1772106973722,13.93053149,86.787,86.747,3.74623215]
[1772106973919,3.56063149,86.786,86.747,3.74623215]
[1772106974220,3.56063149,86.784,86.747,3.74623215]
[1772106976018,10.3707,86.781,86.747,3.74623215]
[1772106977720,10.55526548,86.819,86.683,28.56496626]
[1772106977721,3.56063149,86.762,86.722,10.3776]
[1772106977927,3.56063149,86.762,86.722,14.12383215]
[1772106978221,3.56063149,86.762,86.732,10.3764]
[1772106978422,3.56063149,86.774,86.74,3.05737174]
[1772106978615,3.56063149,86.789,86.741,3.74623215]
[1772106980021,10.3709,86.779,86.741,14.12153215]
[1772106980423,3.05737174,86.8,86.751,3.74623215]
[1772106980628,3.56063149,86.802,86.751,3.74623215]
[1772106980827,10.3686,86.798,86.751,3.74623215]
[1772106981028,3.56063149,86.797,86.751,3.74623215]
[1772106981924,10.369,86.795,86.751,3.74623215]
[1772106985424,13.92963149,86.795,86.751,3.74623215]
[1772106987826,10.3696,86.789,86.751,3.74623215]
[1772106998428,10.3696,86.789,86.754,14.19943101]
[1772106999434,3.64520348,86.808,86.757,3.82563101]
[1772106999625,3.64520348,86.808,86.761,3.82563101]
[1772106999626,8.93140114,86.807,86.761,3.82563101]
[1772106999931,3.64520348,86.808,86.761,3.82563101]
[1772107001031,10.3679,86.804,86.766,3.82563101]
[1772107007233,14.01310348,86.804,86.766,3.82563101]
[1772107008234,3.64520348,86.803,86.766,3.82563101]
[1772107008835,3.64520348,86.8,86.766,3.82563101]
[1772107022248,3.79134991,86.797,86.766,3.82563101]
[1772107022450,3.79134991,86.779,86.722,3.91113731]
[1772107022651,3.79134991,86.769,86.722,3.91113731]
[1772107023850,10.3722,86.768,86.728,10.3768]
[1772107024052,3.79134991,86.767,86.728,10.3768]
[1772107028055,3.79134991,86.763,86.728,10.3768]
[1772107029961,3.79134991,86.761,86.728,10.3768]
[1772107030862,10.3721,86.769,86.731,3.91113731]
[1772107033855,3.79134991,86.768,86.732,10.3763]
[1772107035158,8.90521473,86.787,86.741,3.91113731]
[1772107035357,6.84928506,86.79,86.741,3.91113731]
[1772107035764,6.84928506,86.79,86.749,3.91113731]
[1772107035765,10.3698,86.788,86.749,3.91113731]
[1772107036964,10.3698,86.788,86.752,14.28503731]
[1772107037158,10.3698,86.788,86.753,3.91113731]
[1772107037356,6.84928506,86.79,86.753,3.91113731]
[1772107038061,3.79134991,86.79,86.753,3.91113731]
[1772107038864,3.79134991,86.79,86.755,3.91113731]
[1772107039066,3.79134991,86.804,86.755,3.91113731]
[1772107039969,3.79134991,86.803,86.764,10.3726]
[1772107040169,3.79134991,86.803,86.765,3.91113731]
[1772107041065,3.79134991,86.803,86.767,3.91113731]
[1772107041572,10.3669,86.813,86.771,3.91113731]
[1772107041758,3.05793515,86.81,86.754,3.91113731]
[1772107042066,3.79134991,86.794,86.754,3.91113731]
[1772107042456,3.79134991,86.791,86.75,10.3742]
[1772107042658,3.79134991,86.789,86.743,3.91113731]
[1772107043866,3.79134991,86.789,86.749,10.3744]
[1772107045567,3.79134991,86.789,86.749,14.28553731]
[1772107047370,3.79134991,86.789,86.753,10.3739]
[1772107049968,3.79134991,86.789,86.76,10.3731]
[1772107050175,3.68635396,86.799,86.761,3.79567958]
[1772107051978,3.68635396,86.799,86.762,10.3728]
[1772107052383,3.68635396,86.799,86.762,14.16847958]
[1772107053983,3.68635396,86.799,86.763,3.79567958]
[1772107055083,3.68635396,86.799,86.764,14.16817958]
[1772107055486,3.68635396,86.799,86.765,3.79567958]
[1772107055882,3.68635396,86.799,86.76,10.373]
[1772107056083,3.68635396,86.799,86.761,3.79567958]
[1772107060185,3.79765979,86.797,86.761,3.79567958]
[1772107063286,3.79765979,86.795,86.761,3.79567958]
[1772107063484,3.79765979,86.795,86.753,10.3739]
[1772107063681,3.79765979,86.795,86.751,3.78054991]
[1772107064691,3.79765979,86.806,86.751,3.78054991]
[1772107064893,10.3681,86.802,86.765,3.78054991]
[1772107065998,10.3681,86.802,86.767,3.78054991]
[1772107067096,14.16575979,86.802,86.767,3.78054991]
[1772107067899,3.79765979,86.802,86.768,14.15264991]
[1772107072510,3.79765979,86.802,86.768,3.78054991]
[1772107076808,3.65444745,86.8,86.768,3.78054991]
[1772107077009,3.65444745,86.8,86.761,3.86424927]
[1772107077216,12.59130298,86.799,86.761,3.86424927]
[1772107077414,3.65444745,86.798,86.761,3.86424927]
[1772107079013,3.65444745,86.795,86.761,3.86424927]
[1772107080616,10.3692,86.793,86.761,3.86424927]
[1772107082216,10.3685,86.799,86.761,3.86424927]
[1772107082418,8.9372903,86.798,86.761,3.86424927]
[1772107082619,8.9372903,86.797,86.761,3.86424927]
[1772107082815,8.9372903,86.796,86.761,3.86424927]
[1772107083110,3.65444745,86.805,86.761,3.86424927]
[1772107083318,3.65444745,86.803,86.761,3.86424927]
[1772107083508,3.65444745,86.801,86.761,3.86424927]
[1772107083707,3.65444745,86.799,86.761,3.86424927]
[1772107083908,10.3687,86.797,86.761,3.86424927]
[1772107084112,8.93846098,86.796,86.761,3.86424927]
[1772107084319,10.3687,86.797,86.761,3.86424927]
[1772107084520,8.93714865,86.796,86.761,3.86424927]
[1772107084820,14.02344745,86.795,86.761,3.86424927]
[1772107085220,3.65444745,86.794,86.761,3.86424927]
[1772107088922,14.02384745,86.791,86.761,3.86424927]
[1772107099320,3.65444745,86.791,86.763,3.86424927]
[1772107100924,3.65444745,86.791,86.764,10.3725]
[1772107101529,3.65444745,86.791,86.77,10.3719]
[1772107101726,3.65444745,86.805,86.771,3.86424927]
[1772107102125,3.65444745,86.819,86.771,3.86424927]
[1772107102430,3.65444745,86.817,86.761,3.86424927]
[1772107102631,3.65444745,86.809,86.761,3.86424927]
[1772107102929,3.65444745,86.798,86.751,3.86424927]
[1772107104130,3.65444745,86.787,86.751,3.86424927]
[1772107105933,3.77532049,86.785,86.751,3.86424927]
[1772107108134,3.77532049,86.785,86.753,3.87899394]
[1772107108334,3.77532049,86.796,86.753,3.87899394]
[1772107109935,3.77532049,86.796,86.765,10.3725]
[1772107110234,3.77532049,86.796,86.766,3.87899394]
[1772107110629,3.77532049,86.796,86.755,3.87899394]
[1772107110826,3.77532049,86.793,86.74,3.05856332]
[1772107111027,3.77532049,86.793,86.726,192.92829519]
[1772107111028,3.77532049,86.779,86.726,192.92829519]
[1772107111425,3.77532049,86.769,86.726,192.92829519]
[1772107111626,3.77532049,86.769,86.727,3.87899394]
[1772107111825,3.77532049,86.769,86.731,3.87899394]
[1772107113139,3.77532049,86.769,86.734,10.3761]
[1772107113731,3.77532049,86.769,86.731,3.87899394]
[1772107115228,10.3722,86.768,86.726,192.92829519]
[1772107115436,3.77532049,86.767,86.726,192.92829519]
[1772107117037,3.90424819,86.763,86.726,192.92829519]
[1772107117234,3.90424819,86.779,86.731,3.66064982]
[1772107117538,3.90424819,86.779,86.741,3.66064982]
[1772107118938,10.3713,86.775,86.741,3.66064982]
[1772107119338,3.90424819,86.79,86.741,3.66064982]
[1772107119537,3.90424819,86.785,86.743,3.66064982]
[1772107121040,3.90424819,86.781,86.743,3.66064982]
[1772107121933,10.3711,86.777,86.743,3.66064982]
[1772107122642,14.27534819,86.777,86.743,3.66064982]
[1772107126843,3.90424819,86.789,86.751,3.66064982]
[1772107132048,3.90424819,86.789,86.75,3.05856332]
[1772107133046,3.90424819,86.789,86.75,6.71921314]
[1772107133346,3.90424819,86.789,86.751,3.66064982]
[1772107134050,3.90424819,86.789,86.753,3.66064982]
[1772107134250,10.3693,86.792,86.753,3.66064982]
[1772107134452,14.27264819,86.799,86.76,3.05856332]
[1772107134751,3.90424819,86.797,86.747,3.66064982]
[1772107134949,3.90424819,86.779,86.73,6.71921314]
[1772107135139,3.90424819,86.779,86.69,20.7629]
[1772107135140,3.90424819,86.766,86.69,20.7629]
[1772107135340,3.90424819,86.766,86.717,3.66064982]
[1772107137151,3.5415692,86.759,86.717,3.66064982]
[1772107138047,10.3735,86.757,86.717,3.66064982]
[1772107138348,10.3735,86.757,86.72,3.05856332]
[1772107138945,3.5415692,86.754,86.72,3.05856332]
[1772107139154,3.5415692,86.754,86.705,3.6372579]
[1772107139553,3.5415692,86.754,86.71,3.0617726]
[1772107140348,3.5415692,86.754,86.711,10.3789]
[1772107141851,3.5415692,86.75,86.711,10.3789]
[1772107142658,3.5415692,86.747,86.71,3.0617726]
[1772107143850,10.3753,86.742,86.71,3.0617726]
[1772107144156,10.3753,86.742,86.707,3.6372579]
[1772107144355,3.5415692,86.747,86.707,3.6372579]
[1772107145155,3.5415692,86.759,86.72,3.0617726]
[1772107145355,3.5415692,86.759,86.721,3.6372579]
[1772107146060,3.5415692,86.759,86.722,3.6372579]
[1772107146752,3.5415692,86.759,86.729,10.3768]
[1772107146958,10.3721,86.769,86.731,3.6372579]
[1772107147556,3.5415692,86.77,86.734,3.6372579]
[1772107147755,3.5415692,86.775,86.741,3.6372579]
[1772107148356,10.3714,86.774,86.741,3.6372579]
[1772107150167,3.5415692,86.774,86.741,3.6372579]
[1772107154960,13.9129692,86.774,86.741,3.6372579]
[1772107156266,3.5415692,86.774,86.741,3.6372579]
[1772107163669,3.0617726,86.78,86.741,3.6372579]
[1772107163867,3.5415692,86.804,86.751,3.6372579]
[1772107164870,13.9094692,86.804,86.759,10.3731]
[1772107165072,3.5415692,86.803,86.76,3.6372579]
[1772107167468,3.78440067,86.789,86.732,3.68895923]
[1772107167769,3.78440067,86.779,86.732,3.68895923]
[1772107168973,3.78440067,86.779,86.737,10.3758]
[1772107169663,3.78440067,86.779,86.737,14.06475923]
[1772107171971,3.78440067,86.776,86.737,14.06475923]
[1772107175373,3.78440067,86.776,86.738,3.68895923]
[1772107176175,3.78440067,86.776,86.74,3.68895923]
[1772107177875,3.78440067,86.776,86.741,10.3753]
[1772107178477,3.78440067,86.776,86.74,3.68895923]
[1772107178787,3.78440067,86.776,86.721,3.74046947]
[1772107179980,3.69556333,86.768,86.724,3.74046947]
[1772107180981,3.69556333,86.766,86.726,14.11756947]
[1772107182579,3.69556333,86.766,86.727,3.74046947]
[1772107182875,3.69556333,86.766,86.73,3.0617726]
[1772107183077,3.69556333,86.766,86.73,6.80224207]
[1772107183279,3.69556333,86.766,86.731,3.74046947]
[1772107193390,3.69556333,86.766,86.731,14.11686947]
[1772107195597,3.69556333,86.764,86.731,14.11686947]
[1772107195893,3.69556333,86.764,86.731,10.3764]
[1772107196090,3.73580682,86.801,86.752,3.72161994]
[1772107196392,3.73580682,86.799,86.742,3.72161994]
[1772107196594,3.73580682,86.788,86.756,10.3735]
[1772107197494,10.3688,86.796,86.759,3.72161994]
[1772107197795,3.73580682,86.802,86.759,3.72161994]
[1772107198894,10.3682,86.801,86.761,3.72161994]
[1772107199095,14.10400682,86.801,86.761,3.72161994]
[1772107199891,14.10400682,86.801,86.763,3.72161994]
[1772107200091,3.73580682,86.8,86.763,3.72161994]
[1772107200396,3.73580682,86.823,86.771,3.72161994]
[1772107200591,3.73580682,86.823,86.781,3.72161994]
[1772107201897,14.10140682,86.823,86.783,3.72161994]
[1772107202386,20.723,86.858,86.783,3.72161994]
[1772107202387,3.73580682,86.822,86.783,3.72161994]
[1772107202791,3.73580682,86.822,86.784,14.09181994]